fUST/lending_fUST_20250218
["ID","MTS","AMOUNT","RATE_DAILY","PERIOD"]
[353510102,1739891433016,-1100.48,0.00013866,2]
[353510103,1739891433026,-769.33,0.00013866,2]
[353510104,1739891433035,-522.38,0.00013866,2]
[353510105,1739891433045,-500.0,0.00013866,2]
[353510106,1739891433057,-866.21,0.00013866,2]
[353510107,1739891433066,-500.0,0.00013866,2]
[353510108,1739891433076,-500.0,0.00013866,2]
[353510109,1739891433085,-841.2,0.00013866,2]
[353510110,1739891433094,-500.0,0.00013866,2]
[353510111,1739891433104,-8705.44,0.00013866,2]
[353510112,1739891433113,-1392.9,0.00013866,2]
[353510113,1739891433123,-500.0,0.00013866,2]
[353510114,1739891433133,-531.87092043,0.00013867,2]
[353510115,1739891433142,-501.62185845,0.00013867,2]
[353510116,1739891433152,-503.50980569,0.00013867,2]
[353510117,1739891433162,-500.0,0.00013867,2]
[353510118,1739891433173,-500.0,0.00013867,2]
[353510119,1739891433182,-500.0,0.00013867,2]
[353510120,1739891433191,-500.0,0.00013867,2]
[353510121,1739891433202,-454.92224323,0.00013867,2]
[353510122,1739891433212,-500.0,0.00013867,2]
[353510123,1739891433222,-504.55046056,0.00013867,2]
[353510124,1739891433232,-500.0,0.00013867,2]
[353510125,1739891433242,-500.0,0.00013867,2]
[353510126,1739891433252,-500.0,0.00013867,2]
[353510127,1739891433263,-500.0,0.00013867,2]
[353510128,1739891433272,-500.0,0.00013867,2]
[353510129,1739891433282,-500.0,0.00013867,2]
[353510130,1739891433292,-500.0,0.00013867,2]
[353510131,1739891433302,-500.0,0.00013867,2]
[353510132,1739891433315,-500.0,0.00013867,2]
[353510133,1739891433325,-500.0,0.00013867,2]
[353510134,1739891433340,-500.0,0.00013867,2]
[353510135,1739891433350,-403.59990338,0.00013867,2]
[353510136,1739891433360,-354.83054355,0.00013867,2]
[353510137,1739891433369,-500.0,0.00013867,2]
[353510138,1739891433379,-500.0,0.00013867,2]
[353510139,1739891433388,-500.0,0.00013867,2]
[353510140,1739891433398,-500.0,0.00013867,2]
[353510141,1739891433407,-500.0,0.00013867,2]
[353510142,1739891433418,-500.0,0.00013867,2]
[353510143,1739891433428,-503.24733582,0.00013867,2]
[353510144,1739891433437,-500.0,0.00013867,2]
[353510145,1739891433447,-500.0,0.00013867,2]
[353510146,1739891433456,-500.0,0.00013867,2]
[353510147,1739891433465,-500.0,0.00013867,2]
[353510148,1739891433474,-649.16,0.00013867,2]
[353510149,1739891433484,-500.0,0.00013867,2]
[353510150,1739891433494,-500.0,0.00013867,2]
[353510151,1739891433504,-500.0,0.00013867,2]
[353510152,1739891433513,-500.0,0.00013867,2]
[353510153,1739891433523,-500.0,0.00013867,2]
[353510154,1739891433533,-500.0,0.00013867,2]
[353510155,1739891433542,-500.0,0.00013867,2]
[353510156,1739891433552,-500.0,0.00013867,2]
[353510157,1739891433564,-500.0,0.00013867,2]
[353510158,1739891433574,-500.0,0.00013867,2]
[353510159,1739891433583,-500.0,0.00013867,2]
[353510160,1739891433593,-500.0,0.00013867,2]
[353510161,1739891433604,-500.0,0.00013867,2]
[353510162,1739891433614,-549.52,0.00013867,2]
[353510163,1739891433624,-500.0,0.00013867,2]
[353510164,1739891433635,-178.84164285,0.00013867,2]
[353510165,1739891433650,-321.15835715,0.00013867,2]
[353510166,1739891433661,-500.0,0.00013867,2]
[353510167,1739891433672,-500.0,0.00013867,2]
[353510168,1739891433682,-500.0,0.00013867,2]
[353510169,1739891433692,-500.0,0.00013867,2]
[353510170,1739891433703,-500.0,0.00013867,2]
[353510171,1739891433713,-500.0,0.00013867,2]
[353510172,1739891433723,-500.0,0.00013867,2]
[353510173,1739891433733,-501.30693505,0.00013867,2]
[353510174,1739891433743,-502.97426491,0.00013867,2]
[353510175,1739891433753,-500.0,0.00013867,2]
[353510176,1739891433763,-500.82131053,0.00013867,2]
[353510177,1739891433773,-500.0,0.00013867,2]
[353510178,1739891433783,-485.0155381,0.00013867,2]
[353510179,1739891433793,-500.0,0.00013867,2]
[353510180,1739891433804,-500.0,0.00013867,2]
[353510181,1739891433815,-500.0,0.00013867,2]
[353510182,1739891433824,-500.0,0.00013867,2]
[353510183,1739891433834,-500.0,0.00013867,2]
[353510184,1739891433844,-255.57604524,0.00013867,2]
[353510221,1739891438221,-670.89738549,0.00013865,2]
[353510223,1739891438233,-381.56998245,0.00013865,2]
[353510225,1739891438245,-5.12263206,0.00013865,2]
[353510227,1739891438254,-500.0,0.00013866,2]
[353510228,1739891438264,-244.42395476,0.00013867,2]
[353510229,1739891438273,-500.0,0.00013867,2]
[353510230,1739891438282,-500.0,0.00013867,2]
[353510231,1739891438292,-500.0,0.00013867,2]
[353510232,1739891438302,-500.0,0.00013867,2]
[353510233,1739891438313,-500.0,0.00013867,2]
[353510234,1739891438325,-500.0,0.00013867,2]
[353510235,1739891438337,-500.0,0.00013867,2]
[353510236,1739891438347,-500.0,0.00013867,2]
[353510237,1739891438356,-625.78,0.00013867,2]
[353510238,1739891438367,-500.0,0.00013867,2]
[353510239,1739891438378,-500.0,0.00013867,2]
[353510240,1739891438392,-500.0,0.00013867,2]
[353510241,1739891438401,-500.0,0.00013867,2]
[353510242,1739891438412,-500.0,0.00013867,2]
[353510243,1739891438421,-500.0,0.00013867,2]
[353510244,1739891438430,-500.0,0.00013867,2]
[353510245,1739891438440,-500.0,0.00013867,2]
[353510246,1739891438449,-500.0,0.00013867,2]
[353510247,1739891438459,-500.0,0.00013867,2]
[353510248,1739891438468,-500.0,0.00013867,2]
[353510249,1739891438477,-500.0,0.00013867,5]
[353510250,1739891438487,-500.0,0.00013867,2]
[353510251,1739891438496,-500.0,0.00013867,2]
[353510252,1739891438506,-500.0,0.00013867,2]
[353510253,1739891438515,-514.96927874,0.00013867,2]
[353510254,1739891438525,-500.0,0.00013867,2]
[353510255,1739891438534,-41.30543304,0.00013867,2]
[353510256,1739891438546,-458.69456696,0.00013867,2]
[353510257,1739891438555,-537.00473058,0.00013867,2]
[353510258,1739891438565,-500.0,0.00013867,2]
[353510259,1739891438575,-500.0,0.00013867,2]
[353510260,1739891438584,-500.0,0.00013867,2]
[353510261,1739891438593,-6720.75304267,0.00013867,2]
[353510262,1739891438609,-5680.8,0.00013867,2]
[353510263,1739891438625,-9733.04695733,0.00013867,2]
[353510264,1739891438635,-1342.14,0.00013867,2]
[353510265,1739891438644,-500.0,0.00013867,2]
[353510266,1739891438653,-500.0,0.00013867,2]
[353510267,1739891438663,-500.0,0.00013867,2]
[353510268,1739891438673,-501.71373609,0.00013867,2]
[353510269,1739891438682,-500.0,0.00013867,2]
[353510270,1739891438691,-500.0,0.00013867,2]
[353510271,1739891438700,-500.0,0.00013867,2]
[353510272,1739891438709,-686.87,0.00013867,2]
[353510273,1739891438719,-507.75782006,0.00013867,2]
[353510274,1739891438733,-560.03647683,0.00013867,2]
[353510275,1739891438742,-500.0,0.00013867,2]
[353510276,1739891438751,-223.12016723,0.00013867,2]
[353510277,1739891438761,-500.0,0.00013867,2]
[353510278,1739891438770,-500.0,0.00013867,2]
[353510279,1739891438779,-500.0,0.00013867,2]
[353510280,1739891438788,-619.72482855,0.00013867,2]
[353510281,1739891438798,-10695.12,0.00013867,2]
[353510282,1739891438807,-500.0,0.00013867,2]
[353510283,1739891438817,-500.0,0.00013867,2]
[353510284,1739891438826,-500.0,0.00013867,2]
[353510285,1739891438835,-500.0,0.00013867,2]
[353510286,1739891438844,-500.0,0.00013867,2]
[353510287,1739891438853,-500.0,0.00013867,2]
[353510288,1739891438862,-500.0,0.00013867,2]
[353510289,1739891438871,-830.39,0.00013867,2]
[353510290,1739891438882,-500.0,0.00013867,2]
[353510291,1739891438891,-500.0,0.00013867,2]
[353510292,1739891438900,-500.0,0.00013867,2]
[353510293,1739891438909,-500.0,0.00013867,2]
[353510294,1739891438918,-500.0,0.00013867,2]
[353510295,1739891438927,-500.0,0.00013867,2]
[353510296,1739891438938,-505.73715334,0.00013867,2]
[353510297,1739891438950,-500.0,0.00013867,2]
[353510298,1739891438959,-500.0,0.00013867,2]
[353510299,1739891438968,-500.0,0.00013867,2]
[353510300,1739891438977,-500.0,0.00013867,2]
[353510301,1739891438986,-500.0,0.00013867,2]
[353510302,1739891438995,-500.0,0.00013867,2]
[353510303,1739891439005,-500.0,0.00013867,2]
[353510304,1739891439014,-500.0,0.00013867,2]
[353510305,1739891439023,-500.0,0.00013867,2]
[353510306,1739891439033,-500.0,0.00013867,2]
[353510307,1739891439042,-500.0,0.00013867,2]
[353510308,1739891439051,-500.0,0.00013867,2]
[353510309,1739891439061,-500.0,0.00013867,2]
[353510310,1739891439070,-500.0,0.00013867,2]
[353510311,1739891439079,-500.66325189,0.00013867,2]
[353510312,1739891439088,-500.0,0.00013867,2]
[353510313,1739891439097,-238.80331441,0.00013867,2]
[353510314,1739891439107,-500.0,0.00013867,2]
[353510315,1739891439116,-500.0,0.00013867,2]
[353510316,1739891439125,-563.7882657,0.00013867,2]
[353510317,1739891439134,-257.49429732,0.00013867,2]
[353510318,1739891439143,-500.0,0.00013867,2]
[353510319,1739891439152,-504.74063605,0.00013867,2]
[353510320,1739891439161,-500.0,0.00013867,2]
[353510321,1739891439170,-1364.55,0.00013867,2]
[353510322,1739891439179,-500.0,0.00013867,2]
[353510323,1739891439188,-1348.21,0.00013867,2]
[353510324,1739891439197,-506.10550754,0.00013867,2]
[353510325,1739891439206,-506.19572257,0.00013867,2]
[353510326,1739891439215,-500.0,0.00013867,2]
[353510327,1739891439224,-500.0,0.00013867,2]
[353510328,1739891439233,-500.0,0.00013867,2]
[353510329,1739891439243,-500.0,0.00013867,2]
[353510330,1739891439252,-500.0,0.00013867,2]
[353510331,1739891439262,-500.0,0.00013867,2]
[353510332,1739891439271,-500.0,0.00013867,2]
[353510333,1739891439281,-500.0,0.00013867,2]
[353510334,1739891439290,-500.0,0.00013867,2]
[353510335,1739891439299,-500.0,0.00013867,2]
[353510336,1739891439309,-500.0,0.00013868,2]
[353510337,1739891439320,-309.18014313,0.00013868,2]
[353510338,1739891439331,-500.0,0.00013869,2]
[353510339,1739891439342,-500.0,0.00013869,2]
[353510340,1739891439351,-500.0,0.00013869,2]
[353510341,1739891439361,-503.34058286,0.00013869,2]
[353510342,1739891439370,-500.0,0.00013869,2]
[353510343,1739891439380,-1283.9,0.00013869,2]
[353510344,1739891439391,-500.0,0.00013869,2]
[353510345,1739891439400,-500.0,0.00013869,2]
[353510346,1739891439411,-500.0,0.00013869,2]
[353510347,1739891439420,-500.0,0.00013869,2]
[353510348,1739891439429,-533.64,0.00013869,2]
[353510349,1739891439438,-500.0,0.00013869,2]
[353510350,1739891439447,-500.0,0.00013869,2]
[353510351,1739891439456,-500.0,0.00013869,2]
[353510352,1739891439465,-500.0,0.00013869,2]
[353510353,1739891439475,-500.0,0.00013869,2]
[353510354,1739891439484,-500.0,0.00013869,2]
[353510355,1739891439493,-500.0,0.00013869,2]
[353510356,1739891439503,-500.0,0.00013869,2]
[353510357,1739891439512,-500.0,0.00013869,2]
[353510358,1739891439521,-501.89238646,0.00013869,2]
[353510359,1739891439530,-500.0,0.00013869,2]
[353510360,1739891439540,-500.0,0.00013869,2]
[353510361,1739891439549,-500.0,0.00013869,2]
[353510362,1739891439558,-949.04,0.00013869,2]
[353510363,1739891439569,-500.0,0.00013869,2]
[353510364,1739891439578,-500.0,0.00013869,2]
[353510365,1739891439588,-505.73479152,0.0001387,2]
[353510366,1739891439597,-500.0,0.0001387,2]
[353510367,1739891439606,-500.0,0.0001387,2]
[353510368,1739891439616,-500.0,0.0001387,2]
[353510369,1739891439625,-500.0,0.0001387,2]
[353510370,1739891439635,-500.0,0.0001387,2]
[353510371,1739891439644,-500.0,0.0001387,2]
[353510372,1739891439654,-500.0,0.0001387,2]
[353510373,1739891439663,-505.80690571,0.0001387,2]
[353510374,1739891439673,-500.0,0.0001387,2]
[353510375,1739891439683,-165.9196889,0.0001387,2]
[353510376,1739891439692,-500.0,0.0001387,2]
[353510377,1739891439701,-500.0,0.0001387,2]
[353510378,1739891439711,-500.0,0.0001387,2]
[353510379,1739891439720,-500.0,0.0001387,2]
[353510380,1739891439729,-500.0,0.0001387,2]
[353510381,1739891439740,-612.10754204,0.0001387,2]
[353510382,1739891439749,-500.0,0.0001387,2]
[353510383,1739891439830,-458.36518622,0.0001387,2]
[353510384,1739891439840,-500.0,0.0001387,2]
[353510385,1739891439849,-500.0,0.0001387,2]
[353510386,1739891439858,-500.0,0.0001387,2]
[353510387,1739891439867,-229.22114234,0.0001387,2]
[353510389,1739891439876,-500.0,0.0001387,2]
[353510391,1739891439885,-500.0,0.0001387,2]
[353510393,1739891439894,-500.0,0.0001387,2]
[353510395,1739891439903,-500.0,0.0001387,2]
[353510397,1739891439912,-500.0,0.0001387,2]
[353510398,1739891439921,-500.81419851,0.0001387,2]
[353510399,1739891439931,-506.92400394,0.0001387,2]
[353510400,1739891439940,-500.0,0.0001387,2]
[353510401,1739891439949,-500.0,0.0001387,2]
[353510402,1739891439958,-500.0,0.0001387,2]
[353510403,1739891439968,-503.78754432,0.0001387,2]
[353510404,1739891439977,-500.0,0.0001387,2]
[353510406,1739891439986,-500.0,0.0001387,2]
[353510407,1739891439995,-500.0,0.0001387,2]
[353510408,1739891440005,-512.98125807,0.0001387,2]
[353510409,1739891440014,-500.0,0.0001387,2]
[353510410,1739891440023,-438.72601059,0.0001387,2]
[353510411,1739891440033,-500.0,0.0001387,2]
[353510412,1739891440043,-500.0,0.0001387,2]
[353510413,1739891440053,-287.5621185,0.0001387,2]
[353510414,1739891440062,-500.0,0.0001387,2]
[353510415,1739891440071,-500.0,0.0001387,2]
[353510416,1739891440081,-500.0,0.0001387,2]
[353510417,1739891440090,-500.0,0.00013871,2]
[353510418,1739891440100,-500.0,0.00013871,2]
[353510419,1739891440109,-500.0,0.00013871,2]
[353510420,1739891440118,-500.0,0.00013871,2]
[353510421,1739891440128,-500.0,0.00013871,2]
[353510423,1739891440137,-314.94481202,0.00013871,2]
[353510425,1739891440147,-500.0,0.00013871,2]
[353510427,1739891440156,-500.0,0.00013871,2]
[353510428,1739891440166,-500.0,0.00013871,2]
[353510429,1739891440176,-392.86631651,0.00013871,2]
[353510431,1739891440185,-500.0,0.00013871,2]
[353510433,1739891440194,-500.0,0.00013871,2]
[353510435,1739891440204,-500.0,0.00013871,2]
[353510437,1739891440213,-312.36289151,0.00013871,2]
[353510439,1739891440223,-500.0,0.00013871,2]
[353510440,1739891440232,-500.0,0.00013871,2]
[353510442,1739891440241,-500.0,0.00013871,2]
[353510444,1739891440251,-500.0,0.00013871,2]
[353510446,1739891440260,-1868.44,0.00013947,2]
[353510448,1739891440269,-500.0,0.00013947,2]
[353510450,1739891440278,-967.97,0.00013947,2]
[353510452,1739891440288,-500.0,0.00013947,2]
[353510454,1739891440297,-500.0,0.00013947,2]
[353510456,1739891440307,-2653.16,0.00013947,2]
[353510458,1739891440317,-500.0,0.00013947,2]
[353510460,1739891440329,-5175.18,0.00013947,2]
[353510462,1739891440338,-2105.37,0.00013947,2]
[353510464,1739891440347,-2054.28,0.00013947,2]
[353510466,1739891440356,-1057.59,0.00013947,2]
[353510468,1739891440366,-500.0,0.00013949,2]
[353510470,1739891440376,-500.0,0.00013949,2]
[353510472,1739891440385,-500.0,0.00013949,2]
[353510474,1739891440395,-431.99885466,0.00013949,2]
[353510476,1739891440406,-500.0,0.00013949,2]
[353510478,1739891440415,-500.0,0.00013949,2]
[353510480,1739891440425,-500.0,0.00013949,2]
[353510482,1739891440434,-500.0,0.00013949,2]
[353510484,1739891440443,-500.0,0.00013949,2]
[353510486,1739891440454,-500.0,0.00013949,2]
[353510489,1739891440463,-503.40472036,0.00013949,2]
[353510490,1739891440473,-500.0,0.00013949,2]
[353510492,1739891440482,-506.5,0.00013949,2]
[353510494,1739891440492,-500.0,0.00013949,2]
[353510496,1739891440502,-500.0,0.00013949,2]
[353510498,1739891440511,-500.0,0.00013949,2]
[353510500,1739891440520,-649.16,0.00013949,2]
[353510502,1739891440529,-500.0,0.00013949,2]
[353510504,1739891440539,-500.0,0.00013949,2]
[353510506,1739891440548,-500.0,0.00013949,2]
[353510508,1739891440557,-500.0,0.00013949,2]
[353510510,1739891440567,-500.0,0.00013949,2]
[353510512,1739891440576,-500.0,0.00013949,2]
[353510514,1739891440585,-155.44690647,0.00013949,2]
[353510516,1739891440595,-500.0,0.00013949,2]
[353510518,1739891440604,-549.52,0.00013949,2]
[353510520,1739891440613,-500.0,0.00013949,2]
[353510522,1739891440622,-487.24696758,0.00013949,2]
[353510524,1739891440632,-500.0,0.00013949,2]
[353510526,1739891440641,-500.0,0.00013949,2]
[353510528,1739891440651,-500.0,0.00013949,2]
[353510530,1739891440661,-500.0,0.00013949,2]
[353510532,1739891440670,-500.0,0.00013949,2]
[353510534,1739891440679,-500.0,0.00013949,2]
[353510536,1739891440689,-500.0,0.00013949,2]
[353510538,1739891440698,-500.0,0.00013949,2]
[353510540,1739891440707,-500.0,0.00013949,2]
[353510542,1739891440717,-151.0,0.00013949,2]
[353510544,1739891440726,-500.0,0.00013949,2]
[353510546,1739891440735,-500.0,0.00013949,2]
[353510549,1739891440746,-500.0,0.00013949,2]
[353510551,1739891440755,-500.0,0.00013949,2]
[353510553,1739891440764,-500.0,0.00013949,2]
[353510555,1739891440773,-500.0,0.00013949,2]
[353510559,1739891440782,-500.0,0.00013949,2]
[353510561,1739891440791,-500.0,0.00013949,2]
[353510565,1739891440801,-500.0,0.00013949,2]
[353510566,1739891440810,-500.0,0.00013949,2]
[353510569,1739891440821,-501.67044935,0.00013949,2]
[353510572,1739891440831,-814.52,0.00013949,2]
[353510574,1739891440840,-500.0,0.00013949,2]
[353510576,1739891440850,-500.0,0.00013949,2]
[353510578,1739891440859,-4419.58511351,0.00013949,2]
[353510596,1739891441020,-17715.01488649,0.00013949,2]
[353510599,1739891441030,-500.0,0.00013949,2]
[353510601,1739891441040,-1342.14,0.00013949,2]
[353510603,1739891441049,-1464.87,0.00013949,2]
[353510605,1739891441059,-500.0,0.00013949,2]
[353510607,1739891441070,-500.0,0.00013949,2]
[353510609,1739891441080,-500.0,0.00013949,2]
[353510611,1739891441089,-599.18,0.00013949,2]
[353510613,1739891441098,-500.0,0.00013949,2]
[353510615,1739891441108,-500.0,0.00013949,2]
[353510617,1739891441117,-686.87,0.00013949,2]
[353510619,1739891441127,-2027.64,0.00013949,2]
[353510621,1739891441137,-500.0,0.00013949,2]
[353510623,1739891441146,-4502.31,0.00013949,2]
[353510625,1739891441155,-500.0,0.00013949,2]
[353510627,1739891441165,-10695.12,0.00013949,2]
[353510629,1739891441174,-500.0,0.00013949,2]
[353510631,1739891441184,-500.0,0.00013949,2]
[353510633,1739891441193,-500.0,0.00013949,2]
[353510635,1739891441203,-500.0,0.00013949,2]
[353510644,1739891441288,-614.04541444,0.00013949,2]
[353510646,1739891441298,-500.0,0.00013949,2]
[353510648,1739891441308,-830.39,0.00013949,2]
[353510650,1739891441319,-500.0,0.00013949,2]
[353510652,1739891441329,-500.0,0.00013949,2]
[353510654,1739891441343,-500.0,0.00013949,2]
[353510656,1739891441352,-2366.12,0.00013949,2]
[353510658,1739891441361,-500.0,0.00013949,2]
[353510660,1739891441371,-500.0,0.00013949,2]
[353510662,1739891441381,-500.0,0.00013949,2]
[353510664,1739891441390,-500.0,0.00013949,2]
[353510666,1739891441400,-1100.48,0.00013949,2]
[353510668,1739891441410,-500.0,0.00013949,2]
[353510670,1739891441419,-500.0,0.00013949,2]
[353510672,1739891441428,-769.33,0.00013949,2]
[353510674,1739891441438,-500.0,0.00013949,2]
[353510676,1739891441447,-336.5431947,0.00013949,2]
[353510678,1739891441456,-500.0,0.00013949,2]
[353510680,1739891441465,-500.0,0.00013949,2]
[353510682,1739891441475,-500.0,0.00013949,2]
[353510684,1739891441484,-522.38,0.00013949,2]
[353510686,1739891441493,-500.0,0.00013949,2]
[353510688,1739891441502,-500.0,0.00013949,2]
[353510690,1739891441511,-866.21,0.00013949,2]
[353510692,1739891441520,-500.0,0.00013949,2]
[353510694,1739891441529,-167.66,0.00013949,2]
[353510696,1739891441538,-500.0,0.00013949,2]
[353510699,1739891441548,-500.0,0.00013949,2]
[353510700,1739891441557,-1364.55,0.00013949,2]
[353510702,1739891441567,-841.2,0.00013949,2]
[353510705,1739891441576,-500.0,0.00013949,2]
[353510707,1739891441585,-1348.21,0.00013949,2]
[353510709,1739891441594,-8705.44,0.00013949,2]
[353510711,1739891441603,-500.0,0.00013949,2]
[353510713,1739891441612,-500.0,0.00013949,2]
[353510715,1739891441622,-1392.9,0.00013949,2]
[353510717,1739891441631,-500.0,0.00013949,2]
[353510719,1739891441640,-500.0,0.00013949,2]
[353510721,1739891441649,-500.0,0.00013949,2]
[353510723,1739891441659,-151.75449317,0.00013949,2]
[353510725,1739891441668,-500.0,0.00013949,2]
[353510727,1739891441677,-500.0,0.00013949,2]
[353510729,1739891441686,-500.0,0.00013949,2]
[353510730,1739891441695,-500.0,0.00013952,2]
[353510732,1739891441704,-500.0,0.00013952,2]
[353510734,1739891441713,-500.0,0.00013952,2]
[353510737,1739891441723,-500.0,0.00013952,2]
[353510739,1739891441732,-500.0,0.00013952,2]
[353510741,1739891441742,-500.0,0.00013952,2]
[353510743,1739891441751,-500.0,0.00013952,2]
[353510745,1739891441760,-358.75927071,0.00013952,2]
[353510747,1739891441770,-500.0,0.00013952,2]
[353510749,1739891441779,-500.0,0.00013952,2]
[353510751,1739891441789,-500.0,0.00013952,2]
[353510753,1739891441798,-500.0,0.00013952,2]
[353510755,1739891441808,-500.0,0.00013952,2]
[353510757,1739891441820,-500.0,0.00013952,2]
[353510759,1739891441829,-500.0,0.00013952,2]
[353510761,1739891441838,-500.0,0.00013952,2]
[353510763,1739891441847,-500.0,0.00013952,2]
[353510764,1739891441857,-500.0,0.00013952,2]
[353510766,1739891441866,-500.0,0.00013952,2]
[353510769,1739891441876,-500.0,0.00013952,2]
[353510770,1739891441885,-500.0,0.00013952,2]
[353510772,1739891441894,-500.0,0.00013952,2]
[353510774,1739891441904,-500.0,0.00013952,2]
[353510776,1739891441914,-500.0,0.00013952,2]
[353510778,1739891441923,-500.0,0.00013952,2]
[353510780,1739891441932,-500.0,0.00013952,2]
[353510782,1739891441942,-500.0,0.00013952,2]
[353510784,1739891441951,-500.0,0.00013952,2]
[353510786,1739891441961,-151.0,0.00013952,2]
[353510788,1739891441970,-500.0,0.00013952,2]
[353510790,1739891441980,-500.0,0.00013952,2]
[353510792,1739891441989,-500.0,0.00013952,2]
[353510794,1739891441999,-1283.9,0.00013952,2]
[353510796,1739891442008,-500.0,0.00013952,2]
[353510798,1739891442018,-500.0,0.00013952,2]
[353510800,1739891442028,-500.0,0.00013952,2]
[353510802,1739891442037,-533.64,0.00013952,2]
[353510804,1739891442046,-543.33557352,0.00013952,2]
[353510806,1739891442056,-500.0,0.00013952,2]
[353510808,1739891442066,-500.0,0.00013952,2]
[353510810,1739891442075,-447.67448452,0.00013952,2]
[353510812,1739891442085,-500.0,0.00013952,2]
[353510814,1739891442094,-501.8015462,0.00013952,2]
[353510816,1739891442103,-500.0,0.00013952,2]
[353510818,1739891442113,-342.0,0.00013952,2]
[353510820,1739891442123,-342.0,0.00013952,2]
[353510822,1739891442132,-500.0,0.00013952,2]
[353510824,1739891442141,-342.0,0.00013952,2]
[353510826,1739891442151,-342.0,0.00013952,2]
[353510828,1739891442160,-447.48217838,0.00013952,2]
[353510830,1739891442169,-500.0,0.00013952,2]
[353510832,1739891442179,-500.0,0.00013952,2]
[353510834,1739891442188,-500.0,0.00013952,2]
[353510836,1739891442197,-500.0,0.00013952,2]
[353510838,1739891442206,-500.0,0.00013952,2]
[353510840,1739891442215,-949.04,0.00013952,2]
[353510842,1739891442225,-500.0,0.00013952,2]
[353510844,1739891442234,-500.0,0.00013953,2]
[353510846,1739891442243,-530.73041916,0.00013953,2]
[353510848,1739891442253,-500.0,0.00013953,2]
[353510850,1739891442263,-500.0,0.00013953,2]
[353510852,1739891442273,-164.89384226,0.00013953,2]
[353510854,1739891442282,-586.16433757,0.00013953,2]
[353510856,1739891442291,-500.0,0.00013953,2]
[353510858,1739891442300,-500.0,0.00013953,2]
[353510860,1739891442310,-153.0,0.00014,2]
[353510862,1739891442321,-3000.0,0.00014016,2]
[353510865,1739891442334,-5181.9308739,0.00014019,2]
[353510866,1739891442343,-1868.44,0.0001403,2]
[353510869,1739891442353,-500.0,0.0001403,2]
[353510870,1739891442363,-967.97,0.0001403,2]
[353510872,1739891442373,-500.0,0.0001403,2]
[353510875,1739891442383,-2653.16,0.0001403,2]
[353510876,1739891442392,-5175.18,0.0001403,2]
[353510879,1739891442401,-2105.37,0.0001403,2]
[353510881,1739891442412,-2054.28,0.0001403,2]
[353510883,1739891442422,-1057.59,0.0001403,2]
[353510885,1739891442432,-814.52,0.00014031,2]
[353510887,1739891442441,-500.0,0.00014031,2]
[353510889,1739891442451,-1464.87,0.00014031,2]
[353510891,1739891442460,-500.0,0.00014031,2]
[353510893,1739891442470,-599.18,0.00014031,2]
[353510895,1739891442479,-500.0,0.00014031,2]
[353510897,1739891442488,-2027.64,0.00014031,2]
[353510899,1739891442497,-4502.31,0.00014031,2]